[Event "CIS Master Groups 2024"]
[Site "Vasto"]
[Date "2024.04.11"]
[Round "6.19"]
[White "Grimaldi, Angela Flavia"]
[Black "Paolillo, Gaia"]
[Result "1/2-1/2"]
[ECO "C10"]
[WhiteElo "1983"]
[BlackElo "2057"]
[Annotator "TA"]
[PlyCount "89"]
[EventDate "2024.04.07"]
[EventType "team-tourn"]
[EventCountry "ITA"]
[SourceTitle "playchess.com"]
[Source "ChessBase"]
[SourceQuality "1"]
[TimeControl "40/5400+30:900+30"]

{[%evp 14,89,41,27,50,29,43,31,39,34,36,35,31,28,44,58,50,19,51,13,19,8,22,14,60,0,0,-23,-10,-31,0,0,0,0,0,-51,-55,-88,-94,-80,-43,-52,-57,-43,-21,-29,-36,-25,-32,-47,-45,-71,-21,-51,-61,-65,-65,-60,-46,-46,-48,-47,-47,-52,-56,-127,-95,-127,-92,-97,-75,-77,-84,-84,-84,-84,0,-28]} 1. e4 {[%emt 0:00:23]} e6 {[%emt 0:00:39]} 2. d4 {[%emt 0:00:11]} d5 {[%emt 0:00:26]} 3. Nc3 {[%emt 0:00:05]} dxe4 {[%emt 0:00:38]} 4. Nxe4 {[%emt 0:00:06]} Bd7 {[%emt 0:00:04]} 5. Nf3 {[%emt 0:00:20]} Bc6 {[%emt 0:00:09]} 6. Bd3 {[%emt 0:00:10]} Nd7 {[%emt 0:02:52]} 7. O-O {[%emt 0:00:37]} Ngf6 {[%emt 0:00:07]} 8. Ng3 {[%emt 0:00:46]} g6 {[%emt 0:00:32]} 9. Qe2 {[%emt 0:00:31]} Bg7 {[%emt 0:02:38]} 10. Ne5 {[%emt 0:00:38]} O-O {[%emt 0:09:04] White is slightly better.} 11. Nxc6 {[%emt 0:10:58]} bxc6 {[%emt 0:00:08]} 12. Ne4 {[%emt 0:18:59]} Rb8 {[%emt 0:13:38]} 13. c3 {[%emt 0:02:28]} Nxe4 {[%emt 0:22:11]} 14. Bxe4 {[%emt 0:02:06]} ({But not} 14. Qxe4 c5 $15) 14... c5 {[%emt 0:00:26]} 15. d5 {[%emt 0:18:40] White wants to play dxe6.} e5 {[%emt 0:04:58]} 16. Rd1 {[%emt 0:09:56]} f5 {[%emt 0:08:17]} 17. Bc2 {[%emt 0:00:28]} Qf6 {[%emt 0:01:37]} 18. Ba4 {[%emt 0:08:01]} Nb6 {[%emt 0:08:51]} (18... Qd6 $11 {feels stronger.}) 19. Bb3 {[%emt 0:00:39]} (19. Bc6 $14) 19... Qd6 $11 {[%emt 0:02:45]} 20. Qb5 {[%emt 0:09:14]} Kh8 {[%emt 0:03:18]} 21. f3 {[%emt 0:05:30]} f4 {[%emt 0:04:51][%cal Oe5e4] Prevents Be3.} 22. Kh1 {[%emt 0:05:43]} Rfd8 {[%emt 0:01:09][%cal Oc5c4]} 23. Qe2 {[%emt 0:00:33]} c4 {[%emt 0:03:15]} 24. Bc2 {[%emt 0:03:58]} (24. Bxc4 $11 Nxc4 (24... c6 25. Bb3 $14) 25. Qxc4) 24... Qc5 $15 {[%emt 0:00:31]} 25. b4 {[%emt 0:00:35]} cxb3 {[%emt 0:00:44]} 26. Bxb3 {[%emt 0:00:04]} a5 {[%emt 0:02:56][%cal Oa5a4]} 27. Qe4 {[%emt 0:01:44]} a4 {[%emt 0:03:47]} 28. Bxa4 {[%emt 0:00:13]} Nxd5 {[%emt 0:01:46]} 29. Bd2 {[%emt 0:00:44]} Nxc3 {[%emt 0:01:16]} 30. Bxc3 {[%emt 0:00:25]} Qxc3 {[%emt 0:00:11]} 31. Rdc1 {[%emt 0:00:41] White is weak on the dark squares} Qb4 {[%emt 0:00:42]} 32. Bc6 {[%emt 0:00:28]} Bf6 {[%emt 0:01:06]} ({Black should try} 32... Qd2 $17 {Strongly threatening ...Rb4.} 33. Rab1 Qxa2 34. Rxb8 Rxb8) 33. Rab1 {[%emt 0:00:17]} (33. Qxb4 {simplifies} Rxb4 34. Be4 Ra4 35. g4) 33... Qd2 {[%emt 0:00:36]} (33... Qxe4 {simplifies} 34. Bxe4 Rxb1 35. Bxb1 Be7) 34. a4 {[%emt 0:00:44]} Rb2 {[%emt 0:00:36]} 35. Rg1 {[%emt 0:00:19]} Rd4 {[%emt 0:00:38]} 36. Rxb2 {[%emt 0:00:16]} Qxb2 {[%emt 0:00:01]} 37. Qb1 {[%emt 0:00:09]} Qb6 {[%emt 0:00:38]} 38. Qxb6 {[%emt 0:00:33]} cxb6 {[%emt 0:00:04][%mdl 4096] Endgame. KRB-KRB} 39. h3 {[%emt 0:00:51]} (39. g3 $15) 39... Kg7 {[%emt 0:00:29]} 40. Rb1 {[%emt 0:00:15][%cal Oh1g1]} Bd8 {[%emt 0:00:17]} 41. Kg1 {[%emt 0:15:21]} Kf6 {[%emt 0:15:34]} 42. Kf1 {[%emt 0:00:33]} Rd2 {[%emt 0:00:00]} 43. Be4 {[%emt 0:00:00]} Kg5 {[%emt 0:00:00]} 44. Rb5 {[%emt 0:00:00]} Kf6 {[%emt 0:00:32]} (44... Bc7 $17) 45. Rd5 {[%emt 0:00:00] Weighted Error Value: White=0.16 (very precise) /Black=0.14 (very precise) .  Mistake:       	White=3     	Black=3      Inaccurate:     	White=7     	Black=3      OK:         	White=12    	Black=14     Best:        	---       	Black=1} 1/2-1/2

[Event "CIS Master Groups 2024"]
[Site "Vasto"]
[Date "2024.04.11"]
[Round "6.20"]
[White "Di Primio, Eugenia"]
[Black "Martinelli, Valeria"]
[Result "0-1"]
[ECO "C50"]
[WhiteElo "1934"]
[BlackElo "2034"]
[Annotator "TA"]
[PlyCount "64"]
[EventDate "2024.04.07"]
[EventType "team-tourn"]
[EventCountry "ITA"]
[SourceTitle "playchess.com"]
[Source "ChessBase"]
[SourceQuality "1"]
[TimeControl "40/5400+30:900+30"]

{[%evp 9,64,16,21,6,14,-7,7,-27,-17,-19,-18,-10,0,-30,-29,-35,-22,-39,-27,-37,-42,-80,-39,-52,-61,-79,-79,-74,-45,-51,-30,-82,-32,-36,0,-64,-38,-81,-80,-78,0,-59,-38,-44,-44,-34,-51,-68,4,-730,-740,-1018,-898,-875,-870,-1894,-1322]} 1. e4 {[%emt 0:00:08]} e5 {[%emt 0:00:05]} 2. Bc4 {[%emt 0:00:22]} Nc6 {[%emt 0:00:29]} 3. Nf3 {[%emt 0:00:14]} Bc5 {[%emt 0:00:14]} 4. d3 {[%emt 0:01:02]} Nf6 {[%emt 0:00:13]} 5. a4 {[%emt 0:00:07]} d6 {[%emt 0:00:46]} 6. Nc3 {[%emt 0:03:14]} a6 {[%emt 0:02:27]} 7. Be3 {[%emt 0:03:57]} Nd4 {[%emt 0:09:30]} 8. O-O {[%emt 0:10:33] The position is equal.} Bg4 {[%emt 0:03:05]} 9. Bxd4 {[%emt 0:00:27]} Bxd4 {[%emt 0:03:56]} 10. h3 {[%emt 0:05:56]} Bh5 {[%emt 0:01:07]} 11. Qe2 {[%emt 0:07:57]} Ba7 {[%emt 0:01:44]} 12. Nd1 {[%emt 0:08:05]} O-O {[%emt 0:01:36]} 13. Ne3 {[%emt 0:00:52]} c6 {[%emt 0:03:22]} 14. g4 {[%emt 0:03:39]} Bg6 {[%emt 0:24:43]} 15. Bb3 {[%emt 0:04:15]} Kh8 {[%emt 0:13:21]} 16. Nh4 {[%emt 0:14:13]} Nd7 {[%emt 0:05:11]} 17. Nhf5 {[%emt 0:00:56]} Nc5 {[%emt 0:03:28]} 18. Bc4 {[%emt 0:02:27]} Ne6 {[%emt 0:04:49]} 19. Qf3 {[%emt 0:06:38]} Rc8 {[%emt 0:07:43]} 20. Rad1 {[%emt 0:08:08]} (20. c3 $11) 20... Ng5 {[%emt 0:04:02]} (20... Bxf5 $17 21. gxf5 Nf4) 21. Qg2 $15 {[%emt 0:01:27]} Ne6 {[%emt 0:00:40]} 22. Qf3 {[%emt 0:01:58]} Qf6 {[%emt 0:01:38]} 23. h4 {[%emt 0:02:22]} Bxf5 {[%emt 0:01:08]} 24. Nxf5 {[%emt 0:01:54]} h6 {[%emt 0:03:41]} (24... Qd8 $17 {Strongly threatening ...g6.} 25. g5 d5 26. exd5 cxd5 27. Qxd5 Qxd5 28. Bxd5 Rxc2) 25. Qg3 {[%emt 0:02:29]} (25. g5 $1 $11 Qd8 26. c3 (26. gxh6 $2 g6 $17)) 25... Nf4 $36 {[%emt 0:00:07][%mdl 2048] White is under pressure.} 26. Rfe1 {[%emt 0:00:37] Prevents Ne2+.} d5 {[%emt 0:00:26]} 27. Bb3 {[%emt 0:00:48]} Rcd8 {[%emt 0:03:43]} (27... d4 {simplifies} 28. h5 Bc5 29. Qh4 Qxh4 30. Nxh4 Be7) 28. g5 {[%emt 0:00:36]} hxg5 {[%emt 0:00:02]} (28... Qg6 $15 29. gxh6 Qxg3+ (29... gxh6 30. Kf1 $17) 30. Nxg3 g5) 29. exd5 $2 {[%emt 0:01:01][%mdl 8192] Now White is beyond hope.} (29. hxg5 $11 Qe6 30. d4) 29... Qxf5 $19 {[%emt 0:00:22] Black is clearly winning.} 30. dxc6 {[%emt 0:04:37]} bxc6 {[%emt 0:00:31]} 31. hxg5 {[%emt 0:00:27]} Rd6 {[%emt 0:01:02] [#] Threatens to win with ...Rg6.} 32. Qh4+ {[%emt 0:03:52]} Kg8 {[%emt 0:00:05] Weighted Error Value: White=0.67/Black=0.19 (very precise) .  Loses game:     	White=1     	---        Mistake:       	White=2     	Black=3      Inaccurate:     	White=5     	Black=3      OK:         	White=10    	Black=8      Best:        	---       	Black=1} 0-1

[Event "CIS Master Groups 2024"]
[Site "Vasto"]
[Date "2024.04.11"]
[Round "6.21"]
[White "Moroni, Luca Jr"]
[Black "Favaloro, Andrea"]
[Result "1/2-1/2"]
[ECO "D36"]
[WhiteElo "2580"]
[BlackElo "2412"]
[Annotator "TA"]
[PlyCount "82"]
[EventDate "2024.04.07"]
[EventType "team-tourn"]
[EventCountry "ITA"]
[SourceTitle "playchess.com"]
[Source "ChessBase"]
[SourceQuality "1"]
[TimeControl "40/5400+30:900+30"]

{[%evp 24,82,13,0,6,0,0,0,0,-27,0,0,6,0,27,28,25,0,36,31,33,0,3,-47,-35,-153,-57,-72,-22,-21,-25,-15,-10,-13,-25,-14,-12,-17,-14,-14,-12,-8,-6,-6,-20,-8,-8,-6,-8,-4,-11,-10,-13,-8,0,0,0,0,0,0,0]} 1. c4 {[%emt 0:00:02]} e6 {[%emt 0:00:47]} 2. Nc3 {[%emt 0:00:04]} d5 {[%emt 0:00:27]} 3. d4 {[%emt 0:00:05]} Nf6 {[%emt 0:00:27]} 4. cxd5 {[%emt 0:00:06]} exd5 {[%emt 0:00:05]} 5. Bg5 {[%emt 0:00:07]} Be7 {[%emt 0:00:09]} 6. e3 {[%emt 0:00:06]} O-O {[%emt 0:00:11]} 7. Bd3 {[%emt 0:00:14]} Re8 {[%emt 0:00:09]} 8. Nge2 {[%emt 0:01:21]} c6 {[%emt 0:00:27]} 9. O-O {[%emt 0:00:30]} Nbd7 {[%emt 0:00:14]} 10. Qc2 {[%emt 0:01:36]} Nf8 {[%emt 0:00:12]} 11. Rae1 {[%emt 0:01:15]} g6 {[%emt 0:00:37]} 12. f3 {[%emt 0:02:40]} Ne6 {[%emt 0:00:59]} 13. Bh4 {[%emt 0:00:08]} b6 {[%emt 0:00:10]} 14. Kh1 {[%emt 0:07:27]} Bb7 {[%emt 0:05:56]} 15. Bf2 {[%emt 0:05:05]} c5 {[%emt 0:01:05] [#] Strongly threatening ...c4.} 16. Qd2 {[%emt 0:00:21]} a6 {[%emt 0:08:44]} 17. Bb1 {[%emt 0:03:52]} b5 {[%emt 0:04:54]} 18. dxc5 {[%emt 0:02:45]} Bxc5 {[%emt 0:02:50]} 19. a3 {[%emt 0:00:10]} Nd7 {[%emt 0:06:07]} 20. b4 {[%emt 0:13:38]} ({Much weaker is} 20. Nxd5 Nb6 21. e4 Nxd5 22. exd5 Qxd5 $15) 20... Bf8 {[%emt 0:01:19]} 21. Rd1 {[%emt 0:02:41]} ({Much worse is} 21. Nxd5 Nb6 22. e4 Nxd5 23. exd5 Bxd5 $15) 21... Ne5 {[%emt 0:16:54]} 22. Qa2 {[%emt 0:05:38][%cal Rc3d5]} (22. Qc1 $5) 22... a5 {[%emt 0:02:29]} 23. Nxd5 {[%emt 0:04:22]} (23. Qb3 $11) 23... axb4 $15 {[%emt 0:00:31]} 24. Be4 {[%emt 0:04:48]} (24. Nxb4 $15 Qb8 25. Qb3) 24... Rxa3 {[%emt 0:07:33]} (24... bxa3 $17 {Threatens to win with ...Nc4.} 25. Nec3 Nc4 (25... b4 26. Nxb4 Qc8 27. Bxb7 $15)) 25. Qb2 {[%emt 0:04:12][%csl LRb4,LRe5]} Nc5 {[%emt 0:02:14]} ({Black should play} 25... Bd6 $17 {White must now prevent ...Bxd5.} 26. Nxb4 Nc4) 26. Nxb4 $11 {[%emt 0:12:55]} Qa5 {[%emt 0:01:57]} 27. Bxb7 {[%emt 0:00:25] [#] And now Bd5 would win.} Rb3 {[%emt 0:04:23]} 28. Qa1 {[%emt 0:02:08]} Qxa1 {[%emt 0:10:41]} 29. Rxa1 {[%emt 0:02:05]} Rxb4 {[%emt 0:02:22] The position is equal.} 30. Bd5 {[%emt 0:00:06]} Rb2 {[%emt 0:00:53]} 31. Nd4 {[%emt 0:00:53]} Ned3 {[%emt 0:01:12]} 32. Bg1 {[%emt 0:04:20]} Nb4 {[%emt 0:00:57] A dynamic duo of knights.} 33. e4 {[%emt 0:01:37]} Nxd5 {[%emt 0:00:45]} 34. exd5 {[%emt 0:00:05]} Rd8 {[%emt 0:00:12]} 35. Nc6 {[%emt 0:03:27]} Rxd5 {[%emt 0:00:56]} 36. Ra8 {[%emt 0:01:56]} Re2 {[%emt 0:04:01] Inhibits Ne7+.} 37. Nd4 {[%emt 0:01:43]} Rd2 {[%emt 0:01:43]} 38. Nxb5 {[%emt 0:00:25]} Rd1 {[%emt 0:00:26]} 39. Rxf8+ {[%emt 0:01:56]} Kxf8 {[%emt 0:00:07]} 40. Bxc5+ {[%emt 0:00:05]} Rxc5 {[%emt 0:00:09]} 41. Rxd1 {[%emt 0:15:03]} Rxb5 {[%emt 0:15:07] Weighted Error Value: White=0.13 (very precise) /Black=0.11 (very precise) .  Mistake:       	White=2     	Black=2      Inaccurate:     	White=2     	Black=3      OK:         	White=13    	Black=12     Best:        	White=2     	Black=3} 1/2-1/2

[Event "CIS Master Groups 2024"]
[Site "Vasto"]
[Date "2024.04.11"]
[Round "6.22"]
[White "Iturrizaga Bonelli, Eduardo"]
[Black "Pelletier, Yannick"]
[Result "1/2-1/2"]
[ECO "A30"]
[WhiteElo "2589"]
[BlackElo "2524"]
[Annotator "TA"]
[PlyCount "51"]
[EventDate "2024.04.07"]
[EventType "team-tourn"]
[EventCountry "ITA"]
[SourceTitle "playchess.com"]
[Source "ChessBase"]
[SourceQuality "1"]
[TimeControl "40/5400+30:900+30"]

{[%evp 27,51,19,31,19,22,24,25,21,31,33,37,31,30,22,27,20,24,24,35,10,34,14,14,0,0,0]} 1. c4 {[%emt 0:00:15]} Nf6 {[%emt 0:00:15]} 2. Nc3 {[%emt 0:00:36]} c5 {[%emt 0:00:26]} 3. g3 {[%emt 0:04:53]} e6 {[%emt 0:01:16]} 4. Nf3 {[%emt 0:00:21]} b6 {[%emt 0:00:06]} 5. Bg2 {[%emt 0:00:06]} Bb7 {[%emt 0:00:05]} 6. O-O {[%emt 0:00:06]} Be7 {[%emt 0:00:04]} 7. d4 {[%emt 0:02:02]} cxd4 {[%emt 0:00:12]} 8. Qxd4 {[%emt 0:00:05]} d6 {[%emt 0:00:18]} 9. Bg5 {[%emt 0:00:41]} a6 {[%emt 0:00:18]} 10. Bxf6 {[%emt 0:00:21]} Bxf6 {[%emt 0:00:05]} 11. Qf4 {[%emt 0:00:04]} O-O {[%emt 0:01:50]} 12. Rfd1 {[%emt 0:00:50]} Be7 {[%emt 0:00:06]} 13. Ne4 {[%emt 0:00:11]} Bxe4 {[%emt 0:00:05]} 14. Qxe4 {[%emt 0:00:03]} Ra7 $1 {[%emt 0:00:06] Black is weak on the light squares} 15. h4 {[%emt 0:00:09]} Rd7 {[%emt 0:19:18]} 16. Nd4 {[%emt 0:13:00]} Bf6 {[%emt 0:01:14]} 17. Rac1 {[%emt 0:12:52] White has an edge.} Qc7 {[%emt 0:08:42]} 18. e3 {[%emt 0:02:15]} Rc8 {[%emt 0:08:28]} 19. Bh3 {[%emt 0:13:34]} Kh8 {[%emt 0:04:15]} 20. Qb1 {[%emt 0:00:38]} Nc6 {[%emt 0:29:29]} 21. Bg2 {[%emt 0:05:27]} Nxd4 {[%emt 0:02:52]} 22. exd4 {[%emt 0:01:24]} a5 {[%emt 0:00:35]} 23. b3 {[%emt 0:01:35]} Re7 {[%emt 0:02:40]} 24. Bf3 {[%emt 0:01:10]} g6 {[%emt 0:01:37]} 25. Kg2 {[%emt 0:01:50]} h5 {[%emt 0:01:45]} 26. Qe4 {[%emt 0:09:26] Weighted Error Value: White=0.09 (flawless) /Black=0.04 (flawless) .  OK:         	White=1     	Black=4} 1/2-1/2

[Event "CIS Master Groups 2024"]
[Site "Vasto"]
[Date "2024.04.11"]
[Round "6.23"]
[White "Borgo, Giulio"]
[Black "Bifulco, Michel"]
[Result "1-0"]
[ECO "A20"]
[WhiteElo "2309"]
[BlackElo "2303"]
[Annotator "TA"]
[PlyCount "61"]
[EventDate "2024.04.07"]
[EventType "team-tourn"]
[EventCountry "ITA"]
[SourceTitle "playchess.com"]
[Source "ChessBase"]
[SourceQuality "1"]
[TimeControl "40/5400+30:900+30"]

{[%evp 9,61,-22,14,14,22,33,38,0,0,4,13,6,14,-31,-28,-37,-26,-29,-33,-35,0,-9,0,0,0,-18,-16,-28,-15,-8,0,-22,14,-65,-64,-71,116,122,123,117,262,262,326,298,414,378,400,426,387,224,461,500,1175,1200]} 1. c4 {[%emt 0:02:51]} e5 {[%emt 0:00:12]} 2. e3 {[%emt 0:05:21]} c5 {[%emt 0:01:02]} 3. Ne2 {[%emt 0:04:22]} Nf6 {[%emt 0:06:21]} 4. a3 {[%emt 0:22:31]} Nc6 {[%emt 0:02:45]} 5. Nbc3 {[%emt 0:19:19]} Be7 {[%emt 0:22:02]} 6. Nd5 {[%emt 0:02:23]} Nxd5 {[%emt 0:01:31]} 7. cxd5 {[%emt 0:00:03]} Nb8 {[%emt 0:00:10][%cal Bc6b8,Bb8d7,Bd7f6,Bf6g4][%mdl 32]} 8. g3 {[%emt 0:06:31] White is slightly better.} d6 {[%emt 0:02:25]} 9. Bg2 {[%emt 0:02:25]} O-O {[%emt 0:00:16]} 10. O-O {[%emt 0:04:34]} Nd7 {[%emt 0:02:04]} 11. f4 {[%emt 0:03:57]} exf4 {[%emt 0:02:17]} 12. gxf4 {[%emt 0:05:09]} f5 {[%emt 0:03:13]} 13. b4 {[%emt 0:01:55]} b6 {[%emt 0:02:24]} 14. Rb1 {[%emt 0:04:09]} Nf6 {[%emt 0:02:22]} 15. Bb2 {[%emt 0:02:15]} Bd7 {[%emt 0:03:00]} 16. Ng3 {[%emt 0:03:13]} Qe8 {[%emt 0:04:06]} 17. d3 {[%emt 0:02:54]} Ng4 {[%emt 0:02:51]} 18. Qf3 {[%emt 0:01:09]} Bh4 {[%emt 0:07:31]} 19. e4 {[%emt 0:00:59][%cal Be3e4,Be4e5,Be5e6][%mdl 32]} Qg6 {[%emt 0:03:54]} 20. e5 {[%emt 0:02:11]} cxb4 {[%emt 0:01:13] [#] Strongly threatening ...dxe5.} (20... dxe5 {keeps more tension.} 21. fxe5 f4 22. Ne2 Bf2+) 21. Ne2 {[%emt 0:00:47]} (21. e6 $11 Bb5 22. Bd4 (22. axb4 Rfc8 $11)) 21... bxa3 $15 {[%emt 0:06:57]} 22. Bxa3 {[%emt 0:00:11]} Be7 {[%emt 0:06:32]} (22... dxe5 $1 $17 {stays on course. White must now prevent ...Rf7.} 23. Bxf8 Rxf8) 23. h3 $16 {[%emt 0:00:46][%mdl 1024] White has strong compensation.} Nh6 {[%emt 0:00:16]} 24. e6 $36 {[%emt 0:00:34][%mdl 2048] White is on the roll.} Bc8 {[%emt 0:04:13] This costs Black the game.} (24... Ba4 $16 25. Nd4 Rac8) 25. Rfc1 $18 {[%emt 0:00:07]} Qf6 {[%emt 0:01:48]} 26. Rc7 {[%emt 0:00:49]} Ba6 {[%emt 0:00:56]} 27. Bb2 {[%emt 0:00:34]} Qh4 {[%emt 0:00:01]} 28. Ra1 {[%emt 0:00:33]} Bb5 {[%emt 0:05:48]} 29. Nd4 {[%emt 0:00:43]} (29. Rcxa7 $142 Rxa7 30. Rxa7) 29... Be8 $2 {[%emt 0:00:21]} (29... a6 30. Rac1 (30. Qf2 Qxf2+ 31. Kxf2 Bf6 $18) 30... Rfe8) 30. Qe3 {[%emt 0:00:42][%cal Od4f3] [#] And now Nf3! would win.} ({But not} 30. Raxa7 Rxa7 31. Rxa7 Qe1+ 32. Qf1 Qb4 $18) 30... a5 {[%emt 0:02:23]} (30... Bh5 $142 31. Nc6 (31. Rcxa7 Rxa7 32. Rxa7 Re8 $18) 31... Bf6 32. Bxf6 (32. Rcxa7 Rxa7 33. Rxa7 Bxb2 $11) 32... Qxf6) 31. Nf3 {[%emt 0:00:16][%csl LRb6,LRh4] Weighted Error Value: White=0.21 (precise) /Black=0.53.  Mistake:       	White=2     	Black=4      Inaccurate:     	White=2     	Black=3      OK:         	White=12    	Black=10     Best:        	White=1     	Black=1} 1-0

[Event "CIS Master Groups 2024"]
[Site "Vasto"]
[Date "2024.04.11"]
[Round "6.24"]
[White "Bertagnolli, Alexander"]
[Black "Podetti, Davide"]
[Result "1-0"]
[ECO "A45"]
[WhiteElo "2333"]
[BlackElo "2280"]
[Annotator "TA"]
[PlyCount "59"]
[EventDate "2024.04.07"]
[EventType "team-tourn"]
[EventCountry "ITA"]
[SourceTitle "playchess.com"]
[Source "ChessBase"]
[SourceQuality "1"]
[TimeControl "40/5400+30:900+30"]

{[%evp 10,59,18,0,12,11,10,20,24,-16,26,24,32,29,28,27,91,96,89,52,132,145,135,121,141,50,176,187,199,166,201,126,203,190,256,264,395,407,402,352,483,422,671,645,684,566,825,791,970,967,981,972]} 1. d4 {[%emt 0:00:03]} Nf6 {[%emt 0:00:27]} 2. Bg5 {[%emt 0:00:09]} e6 {[%emt 0:00:49]} 3. e4 {[%emt 0:00:32]} h6 {[%emt 0:00:19]} 4. Bxf6 {[%emt 0:00:07]} Qxf6 {[%emt 0:00:05]} 5. c3 {[%emt 0:00:08]} d6 {[%emt 0:00:53]} 6. Bd3 {[%emt 0:00:09]} g6 {[%emt 0:01:44]} 7. Ne2 {[%emt 0:00:02]} Bg7 {[%emt 0:00:40]} 8. f4 {[%emt 0:00:01]} Qe7 {[%emt 0:01:44] The position is equal.} 9. e5 {[%emt 0:00:02]} Nd7 {[%emt 0:01:52]} 10. O-O {[%emt 0:00:50]} O-O {[%emt 0:06:18]} 11. Nd2 {[%emt 0:00:21]} b6 {[%emt 0:01:14]} 12. Be4 {[%emt 0:00:14]} d5 {[%emt 0:01:03]} (12... Rb8 $11 {remains equal.}) 13. Bd3 $16 {[%emt 0:00:01]} c5 {[%emt 0:00:55]} 14. g4 {[%emt 0:00:21] White is more active.} Bb7 {[%emt 0:06:28]} (14... Qh4 $14) 15. Nf3 {[%emt 0:03:13]} f5 {[%emt 0:06:02]} 16. exf6 {[%emt 0:01:37]} Rxf6 {[%emt 0:01:09][%cal Og6g5]} 17. Ne5 {[%emt 0:20:02]} (17. Qd2 $16) 17... Nf8 {[%emt 0:07:11]} (17... g5 $14) 18. Qd2 $18 {[%emt 0:07:57]} Rc8 {[%emt 0:09:17]} 19. Ng3 {[%emt 0:02:52] A dynamic duo of knights.} Bc6 {[%emt 0:05:27]} 20. h4 {[%emt 0:01:43][%cal Bh2h4,Bh4h5][%mdl 32] And now g5 would win.} Be8 {[%emt 0:01:18]} (20... cxd4 $16 {might work better.} 21. cxd4 Rf7) 21. g5 {[%emt 0:00:54]} Rf5 {[%emt 0:00:58]} (21... Rf7 $142 22. Nxf7 (22. Bxg6 Nxg6 23. Nxg6 Qd6 $18) 22... Bxf7) 22. Bxf5 {[%emt 0:00:41]} exf5 {[%emt 0:00:10]} (22... gxf5 $142 23. Rae1 a5) 23. Rae1 {[%emt 0:00:55][%cal Oe5g6] aiming for Nxg6!} Qd6 {[%emt 0:01:31] [#]} 24. h5 $1 {[%emt 0:01:42]} Rd8 {[%emt 0:09:51]} (24... cxd4 25. gxh6) 25. a3 {[%emt 0:09:56] White is clearly winning.} Nh7 {[%emt 0:08:13]} (25... hxg5 $142 26. hxg6 (26. fxg5 cxd4 27. cxd4 Bd7 $18) 26... Bxg6 27. Nxg6 (27. fxg5 Ne6 $18) 27... Qxg6 28. fxg5 Ne6 29. Nxf5 (29. Rxf5 cxd4 30. Qe2 Nc5 $18) 29... Qxg5+ 30. Qxg5 Nxg5 31. Ne7+ Kh7 32. dxc5 bxc5) 26. gxh6 {[%emt 0:06:30]} Bxh6 {[%emt 0:01:24]} 27. Qh2 {[%emt 0:00:23] Threatens to win with hxg6.} Bg7 {[%emt 0:01:18]} 28. Kh1 {[%emt 0:01:33]} Qf6 {[%emt 0:03:51]} 29. hxg6 {[%emt 0:02:14]} Bxg6 {[%emt 0:00:07]} 30. Rg1 {[%emt 0:00:35] Weighted Error Value: White=0.26 (precise) /Black=0.62.  Mistake:       	White=1     	Black=7      Inaccurate:     	White=3     	Black=2      OK:         	White=5     	Black=4      Best:        	White=1     	---} 1-0